Workbook

Sheet Partenza sistema
B1: Applicazione di rete angolare per finestre
A5: Fornitura e posa in opera di rete preformata in fibra di vetro alcali resistente da inserire in corrispondenza degli angoli di porte, finestre e aperture per il rinforzo aggiuntivo alla rete d'armatura - tipo Rete Angolare per Finestre di Kerakoll. Il prezzo è per singolo angolare effettivamente posta in opera. E' altresì compresa la fornitura e posa in opera di tutti i materiali sopra descritti e quanto altro occorre per dare il lavoro finito. Sono esclusi: il materiale per la rasatura, le indagini pre e post intervento; tutti i sussidi necessari per l'esecuzione dei lavori ricadenti all'interno dei costi della sicurezza indiretti.
A11: DESCRIZIONE | D11: U.M. | E11: QUANTITA' | F11: PREZZO UNITARIO* | G11: PREZZO COMPLETO
A12: RISORSE UMANE (RU)
A13: Applicazione di rete angolare preformata | I13: OPERAIO QUALIFICATO (MO1003) | L13: =INDEX(lavorazioni_secondostrato,(VLOOKUP($B$1,lavorazioni_secondostrato,2,FALSE)+1),3) -> 
A14: =IF(A13=0,"",$I$13) -> OPERAIO QUALIFICATO (MO1003) | D14: H/cad | E14: 0.02 | F14: =IFERROR(VLOOKUP(A14,PRZ,3,FALSE),"") -> 29.25 | G14: =IFERROR(E14*F14,"") -> 0.585 | L14: =IF(L13=0,"",$I$13) ->  | O14: =IFERROR(VLOOKUP(L14,prezzi,2,FALSE),"") ->  | P14: =IF(L14=$I$13,VLOOKUP(L13,#REF!,2,FALSE),IF(L14=$I$14,VLOOKUP(L12,#REF!,2,FALSE),"")) ->  | Q14: =IFERROR(VLOOKUP(L14,prezzi,3,FALSE),"") ->  | R14: =IFERROR(P14*Q14,"") -> 
D15: =IFERROR(VLOOKUP(A15,prezzi,2,FALSE),"") ->  | E15: =IF(A15=$I$13,VLOOKUP(#REF!,QTA,2,FALSE),"") ->  | F15: sommano RU | G15: =SUM(G14:G14) -> 0.585 | P15: =IF(L15=$I$13,VLOOKUP(#REF!,#REF!,2,FALSE),IF(L15=$I$14,VLOOKUP(#REF!,#REF!,2,FALSE),"")) ->  | Q15: sommano RU | R15: =SUM(R14:R14) -> 0
A16: PRODOTTI DA COSTRUZIONE (PR) | D16: =IFERROR(VLOOKUP(A16,prezzi,2,FALSE),"") -> 
A17: Rete Angolare per Finestre | D17: cad | E17: 1 | F17: =IFERROR(VLOOKUP(A17,PRZ,3,FALSE),"") -> 4.454 | G17: =IFERROR(F17*E17,"") -> 4.454
F18: sommano PR | G18: =SUM(G17:G17) -> 4.454
A19: ATTREZZATURE (AT)
A20: NOLO DI STRUMENTAZIONE DA CANTIERE | D20: H/cad | E20: 0.01 | F20: 8 | G20: =F20*E20 -> 0.08
A21: TRASPORTO MATERIALI DI CONSUMO | D21: kg/cad | E21: 0.01 | F21: =0.02 -> 0.02 | G21: =F21*E21 -> 0.0002
F22: sommano AT | G22: =SUM(G20:G21) -> 0.0802
F23: Costo Tecnico (CT) | G23: =SUM(G22,G18,G15) -> 5.1192
F24: Costo indiretto (SG) 17,00% | G24: =G23*0.17 -> 0.870264
F25: Costo figurativo (U) 10,00% | G25: =(G23+G24)*0.1 -> 0.5989464
A26: * Prezzi materiali Kerakoll = Listino 07-2025. Prezzi manodopera = Prezziario DEI (I Semestre 2025) - Media Nazionale.
B27: RU+PR+AT+SG+U | D27: PREZZO COMPLESSIVO CADAUNO | G27: =G23+G24+G25 -> 6.5884104
A29: Voce di capitolato
A30: Fornitura e posa in opera di rete preformata in fibra di vetro alcali resistente da inserire in corrispondenza degli angoli di porte, finestre e aperture per il rinforzo aggiuntivo alla rete d'armatura - tipo Rete Angolare per Finestre di Kerakoll. L'intervento si svolge nelle seguenti fasi: a) Applicare il rasante (da contabilizzare a parte) e annegare la rete b) Procedere con le successive fasi di realizzazione del sistema termocoibente La valutazione è espressa per singolo angolare effettivamente posto in opera.

Sheet Unità misura e prezzi (hidden)
B2: Prodotto | C2: UM | D2: Prezzo
B3: OPERAIO QUALIFICATO (MO1003) | C3: H/mq | D3: 29.25
B4: Rete angolare per finestre | C4: cad | D4: 4.454
